[Event "Titled Tuesday Blitz April 12 Early 2022"]
[White "Suarez Uriel, Adrian"]
[Black "Zaksaite, Salomeja"]
[WhiteFideId "22230874"]
[BlackFideId "12801496"]
[WhiteElo "2316"]
[BlackElo "1953"]
[Result "1-0"]
[Round "11"]
[TimeControl "180+1"]
[Date "2022.04.13"]
[WhiteClock "0:00:48"]
[BlackClock "0:00:03"]

1. d4 {[%clk 0:02:58]}  Nf6 {[%clk 0:02:58]} 2. c4 {[%clk 0:02:58]}  g6 {[%clk 0:02:58]} 3. Nc3 {[%clk 0:02:58]}  d5 {[%clk 0:02:58]} 4. Nf3 {[%clk 0:02:56]}  Bg7 {[%clk 0:02:58]} 5. Bf4 {[%clk 0:02:43]}  c5 {[%clk 0:02:56]} 6. dxc5 {[%clk 0:02:41]}  Qa5 {[%clk 0:02:52]} 7. e3 {[%clk 0:02:16]}  Ne4 {[%clk 0:02:44]} 8. Qa4+ {[%clk 0:02:10]}  Qxa4 {[%clk 0:02:42]} 9. Nxa4 {[%clk 0:02:11]}  Bd7 {[%clk 0:02:40]} 10. cxd5 {[%clk 0:01:58]}  Bxa4 {[%clk 0:02:39]} 11. Be5 {[%clk 0:01:54]}  Bxe5 {[%clk 0:02:29]} 12. Nxe5 {[%clk 0:01:53]}  Nxc5 {[%clk 0:02:14]} 13. Rc1 {[%clk 0:01:48]}  Nba6 {[%clk 0:01:53]} 14. b3 {[%clk 0:01:43]}  Bd7 {[%clk 0:01:51]} 15. Nxd7 {[%clk 0:01:43]}  Kxd7 {[%clk 0:01:46]} 16. Bb5+ {[%clk 0:01:42]}  Kd6 {[%clk 0:01:46]} 17. O-O {[%clk 0:01:42]}  Rac8 {[%clk 0:01:45]} 18. f3 {[%clk 0:01:40]}  Nc7 {[%clk 0:01:38]} 19. Bc4 {[%clk 0:01:39]}  b5 {[%clk 0:01:38]} 20. Be2 {[%clk 0:01:38]}  Nxd5 {[%clk 0:01:22]} 21. Rfd1 {[%clk 0:01:36]}  Ke6 {[%clk 0:01:22]} 22. Bxb5 {[%clk 0:01:36]}  Nb7 {[%clk 0:00:14]} 23. Bc4 {[%clk 0:01:33]}  Rxc4 {[%clk 0:00:11]} 24. bxc4 {[%clk 0:01:33]}  Nb6 {[%clk 0:00:09]} 25. c5 {[%clk 0:01:33]}  Nc8 {[%clk 0:00:08]} 26. c6 {[%clk 0:01:34]}  Nbd6 {[%clk 0:00:08]} 27. Rb1 {[%clk 0:01:33]}  f5 {[%clk 0:00:06]} 28. Rb8 {[%clk 0:01:32]}  h5 {[%clk 0:00:05]} 29. h4 {[%clk 0:01:31]}  Rg8 {[%clk 0:00:04]} 30. Kf2 {[%clk 0:01:30]}  g5 {[%clk 0:00:04]} 31. hxg5 {[%clk 0:01:25]}  Rxg5 {[%clk 0:00:05]} 32. c7 {[%clk 0:01:22]}  Kd7 {[%clk 0:00:05]} 33. Rc1 {[%clk 0:01:11]}  h4 {[%clk 0:00:05]} 34. Rb4 {[%clk 0:01:10]}  f4 {[%clk 0:00:04]} 35. Rxf4 {[%clk 0:01:10]}  Ra5 {[%clk 0:00:04]} 36. Rc2 {[%clk 0:01:10]}  Ra3 {[%clk 0:00:03]} 37. Rxh4 {[%clk 0:01:10]}  Rxe3 {[%clk 0:00:03]} 38. Kxe3 {[%clk 0:01:08]}  Nf5+ {[%clk 0:00:03]} 39. Kf4 {[%clk 0:01:08]}  Nxh4 {[%clk 0:00:03]} 40. g4 {[%clk 0:01:09]}  Ng6+ {[%clk 0:00:03]} 41. Kg5 {[%clk 0:01:06]}  Ne5 {[%clk 0:00:03]} 42. f4 {[%clk 0:01:06]}  Nf3+ {[%clk 0:00:03]} 43. Kh6 {[%clk 0:01:04]}  Nd4 {[%clk 0:00:04]} 44. Rc4 {[%clk 0:01:04]}  Ne6 {[%clk 0:00:03]} 45. g5 {[%clk 0:01:02]}  Nxc7 {[%clk 0:00:03]} 46. g6 {[%clk 0:01:02]}  Nd6 {[%clk 0:00:03]} 47. g7 {[%clk 0:01:00]}  Nf5+ {[%clk 0:00:03]} 48. Kg6 {[%clk 0:01:00]}  Nxg7 {[%clk 0:00:04]} 49. Kxg7 {[%clk 0:01:00]}  Ne6+ {[%clk 0:00:04]} 50. Kg6 {[%clk 0:00:59]}  Kd6 {[%clk 0:00:04]} 51. Kf5 {[%clk 0:00:58]}  Nd8 {[%clk 0:00:02]} 52. Ke4 {[%clk 0:00:53]}  e6 {[%clk 0:00:02]} 53. Rd4+ {[%clk 0:00:52]}  Ke7 {[%clk 0:00:02]} 54. Rc4 {[%clk 0:00:48]}  Nc6 {[%clk 0:00:03]} 55. Rxc6 {[%clk 0:00:48]} 1-0


[Site "https://www.chess.com"]

[Event "Titled Tuesday Blitz April 12 Early 2022"]
[White "Svane, Frederik"]
[Black "Taspinar, Yanki"]
[WhiteFideId "12923044"]
[BlackFideId "34561188"]
[WhiteElo "2459"]
[BlackElo "1518"]
[Result "1-0"]
[Round "11"]
[TimeControl "180+1"]
[Date "2022.04.12"]
[WhiteClock "0:01:12"]
[BlackClock "0:01:00"]

1. e4 {[%clk 0:03:00]}  e5 {[%clk 0:02:59]} 2. Nf3 {[%clk 0:03:01]}  Nc6 {[%clk 0:02:59]} 3. Nc3 {[%clk 0:03:01]}  Nf6 {[%clk 0:02:59]} 4. h3 {[%clk 0:03:02]}  Bb4 {[%clk 0:02:53]} 5. Bd3 {[%clk 0:03:02]}  d6 {[%clk 0:02:52]} 6. O-O {[%clk 0:02:59]}  a6 {[%clk 0:02:52]} 7. a3 {[%clk 0:02:56]}  Bc5 {[%clk 0:02:52]} 8. b4 {[%clk 0:02:55]}  Ba7 {[%clk 0:02:52]} 9. Bb2 {[%clk 0:02:56]}  O-O {[%clk 0:02:51]} 10. Ne2 {[%clk 0:02:44]}  Ne7 {[%clk 0:02:35]} 11. c4 {[%clk 0:02:44]}  Ng6 {[%clk 0:02:34]} 12. Bc2 {[%clk 0:02:43]}  Re8 {[%clk 0:02:30]} 13. Re1 {[%clk 0:02:11]}  Be6 {[%clk 0:02:29]} 14. d3 {[%clk 0:02:10]}  c6 {[%clk 0:02:27]} 15. Rc1 {[%clk 0:02:07]}  h6 {[%clk 0:02:27]} 16. Bb1 {[%clk 0:02:04]}  Nh5 {[%clk 0:02:24]} 17. d4 {[%clk 0:02:02]}  Bd7 {[%clk 0:02:12]} 18. c5 {[%clk 0:01:57]}  dxc5 {[%clk 0:02:09]} 19. bxc5 {[%clk 0:01:58]}  exd4 {[%clk 0:02:07]} 20. Qxd4 {[%clk 0:01:56]}  Be6 {[%clk 0:02:03]} 21. Qc3 {[%clk 0:01:52]}  Qf6 {[%clk 0:01:53]} 22. e5 {[%clk 0:01:36]}  Qe7 {[%clk 0:01:50]} 23. Bxg6 {[%clk 0:01:35]}  fxg6 {[%clk 0:01:50]} 24. g4 {[%clk 0:01:36]}  Rf8 {[%clk 0:01:35]} 25. gxh5 {[%clk 0:01:36]}  Bxh3 {[%clk 0:01:36]} 26. hxg6 {[%clk 0:01:31]}  Bf5 {[%clk 0:01:16]} 27. Ng3 {[%clk 0:01:21]}  Bxg6 {[%clk 0:01:15]} 28. e6 {[%clk 0:01:21]}  Rad8 {[%clk 0:01:09]} 29. Ne5 {[%clk 0:01:16]}  Bh7 {[%clk 0:01:03]} 30. Nf7 {[%clk 0:01:15]}  Rd3 {[%clk 0:01:00]} 31. Qxg7# {[%clk 0:01:12]} 1-0


[Site "https://www.chess.com"]

[Event "Titled Tuesday Blitz April 12 Early 2022"]
[White "Sztokbant, Bernardo Vainzoff"]
[Black "Mika, Tomasz"]
[WhiteFideId "2115956"]
[BlackFideId "1132970"]
[WhiteElo "2225"]
[BlackElo "2116"]
[Result "1-0"]
[Round "11"]
[TimeControl "180+1"]
[Date "2022.04.13"]
[WhiteClock "0:01:52"]
[BlackClock "0:00:56"]

1. e4 {[%clk 0:03:00]}  c6 {[%clk 0:02:59]} 2. d4 {[%clk 0:02:58]}  d5 {[%clk 0:03:00]} 3. exd5 {[%clk 0:02:59]}  cxd5 {[%clk 0:03:00]} 4. Bd3 {[%clk 0:02:59]}  Nc6 {[%clk 0:03:00]} 5. c3 {[%clk 0:02:59]}  Nf6 {[%clk 0:02:57]} 6. Nf3 {[%clk 0:02:59]}  Bg4 {[%clk 0:02:55]} 7. Nbd2 {[%clk 0:02:59]}  e6 {[%clk 0:02:55]} 8. O-O {[%clk 0:02:59]}  Bd6 {[%clk 0:02:55]} 9. Re1 {[%clk 0:02:58]}  O-O {[%clk 0:02:50]} 10. Nf1 {[%clk 0:02:56]}  e5 {[%clk 0:02:46]} 11. dxe5 {[%clk 0:02:56]}  Nxe5 {[%clk 0:02:45]} 12. Be2 {[%clk 0:02:56]}  Nxf3+ {[%clk 0:02:33]} 13. Bxf3 {[%clk 0:02:57]}  Bxf3 {[%clk 0:02:33]} 14. Qxf3 {[%clk 0:02:58]}  Qb6 {[%clk 0:02:25]} 15. Ne3 {[%clk 0:02:42]}  Rad8 {[%clk 0:02:21]} 16. g3 {[%clk 0:02:31]}  h6 {[%clk 0:02:08]} 17. Nf5 {[%clk 0:02:30]}  Bc5 {[%clk 0:02:04]} 18. b4 {[%clk 0:02:24]}  Bd6 {[%clk 0:01:21]} 19. Be3 {[%clk 0:02:24]}  Qc7 {[%clk 0:01:14]} 20. Nxh6+ {[%clk 0:02:18]}  Kh7 {[%clk 0:01:14]} 21. Nf5 {[%clk 0:02:12]}  Be5 {[%clk 0:01:13]} 22. Bd4 {[%clk 0:02:02]}  Ne4 {[%clk 0:01:03]} 23. Bxe5 {[%clk 0:01:51]}  Qxe5 {[%clk 0:01:02]} 24. Qh5+ {[%clk 0:01:51]}  Kg8 {[%clk 0:00:59]} 25. Nh6+ {[%clk 0:01:52]}  gxh6 {[%clk 0:00:56]} 26. Qxe5 {[%clk 0:01:52]} 1-0


[Site "https://www.chess.com"]

[Event "Titled Tuesday Blitz April 12 Early 2022"]
[White "Vianello, Enrico"]
[Black "Pourkashiyan, Atousa"]
[WhiteFideId "810738"]
[BlackFideId "12502014"]
[WhiteElo "2257"]
[BlackElo "2247"]
[Result "0-1"]
[Round "11"]
[TimeControl "180+1"]
[Date "2022.04.13"]
[WhiteClock "0:01:17"]
[BlackClock "0:02:02"]

1. d4 {[%clk 0:02:49]}  Nf6 {[%clk 0:02:58]} 2. Bg5 {[%clk 0:02:48]}  e6 {[%clk 0:02:58]} 3. e4 {[%clk 0:02:43]}  h6 {[%clk 0:02:57]} 4. Bxf6 {[%clk 0:02:43]}  Qxf6 {[%clk 0:02:58]} 5. Nf3 {[%clk 0:02:43]}  d6 {[%clk 0:02:57]} 6. Nc3 {[%clk 0:02:42]}  g6 {[%clk 0:02:58]} 7. Bc4 {[%clk 0:02:40]}  Bg7 {[%clk 0:02:58]} 8. Qe2 {[%clk 0:02:40]}  O-O {[%clk 0:02:58]} 9. O-O {[%clk 0:02:40]}  Nc6 {[%clk 0:02:58]} 10. Rad1 {[%clk 0:02:39]}  e5 {[%clk 0:02:57]} 11. dxe5 {[%clk 0:02:38]}  dxe5 {[%clk 0:02:57]} 12. a3 {[%clk 0:02:38]}  Bg4 {[%clk 0:02:57]} 13. Nd5 {[%clk 0:02:35]}  Qd8 {[%clk 0:02:56]} 14. h3 {[%clk 0:02:34]}  Nd4 {[%clk 0:02:57]} 15. Rxd4 {[%clk 0:02:32]}  Bxf3 {[%clk 0:02:57]} 16. Qxf3 {[%clk 0:02:23]}  exd4 {[%clk 0:02:57]} 17. Qg3 {[%clk 0:02:08]}  c6 {[%clk 0:02:50]} 18. Nb4 {[%clk 0:02:06]}  Qf6 {[%clk 0:02:37]} 19. e5 {[%clk 0:02:01]}  Qf5 {[%clk 0:02:27]} 20. Re1 {[%clk 0:01:56]}  Kh7 {[%clk 0:02:21]} 21. e6 {[%clk 0:01:53]}  fxe6 {[%clk 0:02:20]} 22. Bxe6 {[%clk 0:01:53]}  Qf6 {[%clk 0:02:20]} 23. Bc4 {[%clk 0:01:52]}  Rae8 {[%clk 0:02:19]} 24. Rd1 {[%clk 0:01:41]}  Qe5 {[%clk 0:02:12]} 25. Qxe5 {[%clk 0:01:28]}  Rxe5 {[%clk 0:02:10]} 26. Nd3 {[%clk 0:01:29]}  Re2 {[%clk 0:02:07]} 27. Bb3 {[%clk 0:01:27]}  Rfe8 {[%clk 0:02:00]} 28. Nf4 {[%clk 0:01:25]}  Re1+ {[%clk 0:02:00]} 29. Rxe1 {[%clk 0:01:25]}  Rxe1+ {[%clk 0:02:01]} 30. Kh2 {[%clk 0:01:25]}  Be5 {[%clk 0:02:01]} 31. g3 {[%clk 0:01:17]}  Bxf4 {[%clk 0:02:01]} 32. gxf4 {[%clk 0:01:18]}  Re2 {[%clk 0:02:02]} 33. Kg2 {[%clk 0:01:17]}  d3 {[%clk 0:02:02]} 0-1


[Site "https://www.chess.com"]

[Event "Titled Tuesday Blitz April 12 Early 2022"]
[White "Vokarev, Sergey"]
[Black "Hansen, Eric"]
[WhiteFideId "4119711"]
[BlackFideId "2606771"]
[WhiteElo "2343"]
[BlackElo "2568"]
[Result "1-0"]
[Round "11"]
[TimeControl "180+1"]
[Date "2022.04.12"]
[WhiteClock "0:00:14"]
[BlackClock "0:00:02"]

1. e4 {[%clk 0:02:35]}  c5 {[%clk 0:02:55]} 2. Nf3 {[%clk 0:02:35]}  e6 {[%clk 0:02:56]} 3. b3 {[%clk 0:02:34]}  Nc6 {[%clk 0:02:51]} 4. Bb2 {[%clk 0:02:34]}  d6 {[%clk 0:02:51]} 5. d4 {[%clk 0:02:34]}  cxd4 {[%clk 0:02:47]} 6. Nxd4 {[%clk 0:02:35]}  Nf6 {[%clk 0:02:36]} 7. Nxc6 {[%clk 0:02:34]}  bxc6 {[%clk 0:02:36]} 8. e5 {[%clk 0:02:35]}  Nd5 {[%clk 0:02:20]} 9. exd6 {[%clk 0:02:25]}  Bxd6 {[%clk 0:02:17]} 10. Be2 {[%clk 0:02:24]}  e5 {[%clk 0:02:09]} 11. O-O {[%clk 0:02:22]}  O-O {[%clk 0:02:09]} 12. Bf3 {[%clk 0:02:19]}  Qc7 {[%clk 0:01:13]} 13. c4 {[%clk 0:02:10]}  Nf4 {[%clk 0:01:09]} 14. Re1 {[%clk 0:02:00]}  Re8 {[%clk 0:01:03]} 15. Nc3 {[%clk 0:01:48]}  Bf5 {[%clk 0:01:02]} 16. Ne4 {[%clk 0:01:47]}  Bb4 {[%clk 0:01:01]} 17. Bc3 {[%clk 0:01:45]}  Rad8 {[%clk 0:00:58]} 18. Qc2 {[%clk 0:01:41]}  Bxc3 {[%clk 0:00:41]} 19. Qxc3 {[%clk 0:01:41]}  Rd3 {[%clk 0:00:38]} 20. Qb4 {[%clk 0:01:34]}  Rd4 {[%clk 0:00:30]} 21. Nc5 {[%clk 0:01:16]}  e4 {[%clk 0:00:18]} 22. Qc3 {[%clk 0:01:12]}  Qe5 {[%clk 0:00:17]} 23. b4 {[%clk 0:01:05]}  g5 {[%clk 0:00:16]} 24. Nb3 {[%clk 0:01:02]}  Rd3 {[%clk 0:00:08]} 25. Qxe5 {[%clk 0:00:54]}  Rxe5 {[%clk 0:00:09]} 26. Be2 {[%clk 0:00:48]}  Nxe2+ {[%clk 0:00:09]} 27. Rxe2 {[%clk 0:00:48]}  Rc3 {[%clk 0:00:09]} 28. Rc1 {[%clk 0:00:43]}  Rxc1+ {[%clk 0:00:09]} 29. Nxc1 {[%clk 0:00:44]}  a5 {[%clk 0:00:04]} 30. a3 {[%clk 0:00:43]}  Be6 {[%clk 0:00:04]} 31. Rc2 {[%clk 0:00:40]}  f5 {[%clk 0:00:03]} 32. Kf1 {[%clk 0:00:36]}  Kf8 {[%clk 0:00:03]} 33. Ke2 {[%clk 0:00:34]}  Ke7 {[%clk 0:00:03]} 34. Nb3 {[%clk 0:00:33]}  axb4 {[%clk 0:00:02]} 35. axb4 {[%clk 0:00:34]}  f4 {[%clk 0:00:02]} 36. Nd4 {[%clk 0:00:33]}  Bg4+ {[%clk 0:00:02]} 37. Ke1 {[%clk 0:00:31]}  Bd7 {[%clk 0:00:02]} 38. c5 {[%clk 0:00:25]}  Rd5 {[%clk 0:00:02]} 39. Rc4 {[%clk 0:00:25]}  Kf6 {[%clk 0:00:02]} 40. f3 {[%clk 0:00:17]}  e3 {[%clk 0:00:02]} 41. Ne2 {[%clk 0:00:14]} 1-0


[Site "https://www.chess.com"]

[Event "Titled Tuesday Blitz April 12 Early 2022"]
[White "Wesolowska, Hanna"]
[Black "Petrova, Irina"]
[WhiteFideId "1104683"]
[BlackFideId "14124122"]
[WhiteElo "2266"]
[BlackElo "1993"]
[Result "0-1"]
[Round "11"]
[TimeControl "180+1"]
[Date "2022.04.13"]
[WhiteClock "0:01:16"]
[BlackClock "0:00:38"]

1. e4 {[%clk 0:02:58]}  d6 {[%clk 0:03:00]} 2. d4 {[%clk 0:02:58]}  Nf6 {[%clk 0:03:01]} 3. Nc3 {[%clk 0:02:56]}  e5 {[%clk 0:03:01]} 4. Nf3 {[%clk 0:02:56]}  Nbd7 {[%clk 0:03:00]} 5. Bg5 {[%clk 0:02:54]}  Be7 {[%clk 0:02:59]} 6. Be2 {[%clk 0:02:54]}  O-O {[%clk 0:02:59]} 7. O-O {[%clk 0:02:54]}  c6 {[%clk 0:03:00]} 8. Qd2 {[%clk 0:02:53]}  h6 {[%clk 0:03:00]} 9. Be3 {[%clk 0:02:51]}  Re8 {[%clk 0:02:58]} 10. Rfe1 {[%clk 0:02:51]}  b5 {[%clk 0:02:57]} 11. a3 {[%clk 0:02:51]}  Qc7 {[%clk 0:02:56]} 12. Rad1 {[%clk 0:02:50]}  Bf8 {[%clk 0:02:54]} 13. Nh4 {[%clk 0:02:49]}  a6 {[%clk 0:02:37]} 14. Nf5 {[%clk 0:02:47]}  exd4 {[%clk 0:02:35]} 15. Bxd4 {[%clk 0:02:47]}  Nxe4 {[%clk 0:02:29]} 16. Nxe4 {[%clk 0:02:46]}  Rxe4 {[%clk 0:02:30]} 17. Bd3 {[%clk 0:02:41]}  Rxe1+ {[%clk 0:02:29]} 18. Rxe1 {[%clk 0:02:40]}  Ne5 {[%clk 0:02:29]} 19. f4 {[%clk 0:02:30]}  Nxd3 {[%clk 0:02:24]} 20. Qxd3 {[%clk 0:02:29]}  Bxf5 {[%clk 0:02:17]} 21. Qxf5 {[%clk 0:02:30]}  d5 {[%clk 0:02:07]} 22. Qg4 {[%clk 0:02:16]}  c5 {[%clk 0:01:59]} 23. Be5 {[%clk 0:02:16]}  Qb6 {[%clk 0:01:59]} 24. f5 {[%clk 0:02:09]}  f6 {[%clk 0:01:55]} 25. Bf4 {[%clk 0:02:07]}  Qc6 {[%clk 0:01:34]} 26. Bxh6 {[%clk 0:02:02]}  Re8 {[%clk 0:01:34]} 27. Re6 {[%clk 0:02:00]}  Rxe6 {[%clk 0:01:14]} 28. fxe6 {[%clk 0:02:01]}  Qd6 {[%clk 0:01:07]} 29. Bf4 {[%clk 0:01:59]}  Qe7 {[%clk 0:01:05]} 30. Qf5 {[%clk 0:01:59]}  d4 {[%clk 0:01:04]} 31. h4 {[%clk 0:01:58]}  c4 {[%clk 0:00:59]} 32. h5 {[%clk 0:01:56]}  d3 {[%clk 0:00:55]} 33. cxd3 {[%clk 0:01:56]}  cxd3 {[%clk 0:00:55]} 34. h6 {[%clk 0:01:55]}  Qc5+ {[%clk 0:00:51]} 35. Qxc5 {[%clk 0:01:52]}  Bxc5+ {[%clk 0:00:52]} 36. Kf1 {[%clk 0:01:51]}  g5 {[%clk 0:00:48]} 37. Bc7 {[%clk 0:01:45]}  Be7 {[%clk 0:00:42]} 38. g4 {[%clk 0:01:42]}  Kh7 {[%clk 0:00:41]} 39. Ke1 {[%clk 0:01:42]}  Kxh6 {[%clk 0:00:42]} 40. Kd2 {[%clk 0:01:43]}  Kg6 {[%clk 0:00:42]} 41. Kxd3 {[%clk 0:01:43]}  f5 {[%clk 0:00:43]} 42. gxf5+ {[%clk 0:01:41]}  Kxf5 {[%clk 0:00:43]} 43. Kd4 {[%clk 0:01:24]}  Kxe6 {[%clk 0:00:43]} 44. Ke4 {[%clk 0:01:21]}  Bd6 {[%clk 0:00:43]} 45. Bd8 {[%clk 0:01:21]}  g4 {[%clk 0:00:42]} 46. Bh4 {[%clk 0:01:20]}  g3 {[%clk 0:00:42]} 47. Kf3 {[%clk 0:01:20]}  Kd5 {[%clk 0:00:43]} 48. b3 {[%clk 0:01:19]}  Kd4 {[%clk 0:00:42]} 49. Bf6+ {[%clk 0:01:18]}  Kd3 {[%clk 0:00:42]} 50. a4 {[%clk 0:01:16]}  b4 {[%clk 0:00:38]} 0-1


[Site "https://www.chess.com"]

[Event "Titled Tuesday Blitz April 12 Early 2022"]
[White "Yang, Kaiqi"]
[Black "Gallegos Diaz, Carlos Alberto"]
[WhiteFideId "8604398"]
[BlackFideId "3900886"]
[WhiteElo "2373"]
[BlackElo "2362"]
[Result "1-0"]
[Round "11"]
[TimeControl "180+1"]
[Date "2022.04.13"]
[WhiteClock "0:00:06"]
[BlackClock "0:00:08"]

1. e4 {[%clk 0:03:00]}  d6 {[%clk 0:02:59]} 2. d4 {[%clk 0:03:00]}  Nf6 {[%clk 0:02:59]} 3. Nc3 {[%clk 0:03:00]}  c6 {[%clk 0:02:59]} 4. f3 {[%clk 0:02:54]}  Nbd7 {[%clk 0:02:58]} 5. Be3 {[%clk 0:02:53]}  e5 {[%clk 0:02:58]} 6. Nge2 {[%clk 0:02:54]}  b5 {[%clk 0:02:56]} 7. a3 {[%clk 0:02:53]}  a6 {[%clk 0:02:56]} 8. Qd2 {[%clk 0:02:53]}  Qc7 {[%clk 0:02:56]} 9. g4 {[%clk 0:02:52]}  Bb7 {[%clk 0:02:53]} 10. g5 {[%clk 0:02:48]}  Nh5 {[%clk 0:02:52]} 11. Ng3 {[%clk 0:02:48]}  g6 {[%clk 0:02:29]} 12. Nxh5 {[%clk 0:02:47]}  gxh5 {[%clk 0:02:30]} 13. Bh3 {[%clk 0:02:46]}  Bg7 {[%clk 0:02:28]} 14. Bf5 {[%clk 0:02:45]}  Nf8 {[%clk 0:02:23]} 15. f4 {[%clk 0:02:34]}  Ng6 {[%clk 0:02:21]} 16. fxe5 {[%clk 0:02:19]}  dxe5 {[%clk 0:02:22]} 17. d5 {[%clk 0:02:16]}  Rd8 {[%clk 0:02:14]} 18. O-O-O {[%clk 0:02:12]}  cxd5 {[%clk 0:01:24]} 19. Nxd5 {[%clk 0:02:11]}  Bxd5 {[%clk 0:01:21]} 20. exd5 {[%clk 0:02:11]}  O-O {[%clk 0:01:21]} 21. Qf2 {[%clk 0:01:45]}  e4 {[%clk 0:01:14]} 22. Bb6 {[%clk 0:01:33]}  Qe5 {[%clk 0:01:13]} 23. Bd4 {[%clk 0:01:29]}  Qe7 {[%clk 0:00:40]} 24. Bxg7 {[%clk 0:01:24]}  Qxg5+ {[%clk 0:00:40]} 25. Kb1 {[%clk 0:01:21]}  Kxg7 {[%clk 0:00:40]} 26. Bxe4 {[%clk 0:01:17]}  Qe5 {[%clk 0:00:35]} 27. Bf3 {[%clk 0:01:10]}  Qf4 {[%clk 0:00:27]} 28. Qg3 {[%clk 0:01:03]}  h4 {[%clk 0:00:25]} 29. Qxf4 {[%clk 0:00:58]}  Nxf4 {[%clk 0:00:26]} 30. Rhg1+ {[%clk 0:00:55]}  Ng6 {[%clk 0:00:23]} 31. d6 {[%clk 0:00:47]}  f5 {[%clk 0:00:22]} 32. Rd4 {[%clk 0:00:39]}  Kf6 {[%clk 0:00:22]} 33. b4 {[%clk 0:00:33]}  Rfe8 {[%clk 0:00:20]} 34. Bb7 {[%clk 0:00:31]}  Re6 {[%clk 0:00:19]} 35. Rgd1 {[%clk 0:00:30]}  Ke5 {[%clk 0:00:18]} 36. Bxa6 {[%clk 0:00:29]}  Rexd6 {[%clk 0:00:18]} 37. Rxd6 {[%clk 0:00:29]}  Rxd6 {[%clk 0:00:19]} 38. Rxd6 {[%clk 0:00:29]}  Kxd6 {[%clk 0:00:19]} 39. Bxb5 {[%clk 0:00:29]}  f4 {[%clk 0:00:19]} 40. Kc1 {[%clk 0:00:29]}  Ne5 {[%clk 0:00:20]} 41. Kd1 {[%clk 0:00:27]}  Ng4 {[%clk 0:00:20]} 42. Ke1 {[%clk 0:00:17]}  Nxh2 {[%clk 0:00:20]} 43. a4 {[%clk 0:00:17]}  Ng4 {[%clk 0:00:19]} 44. Bf1 {[%clk 0:00:16]}  Ne3 {[%clk 0:00:19]} 45. c3 {[%clk 0:00:13]}  h3 {[%clk 0:00:18]} 46. Bxh3 {[%clk 0:00:13]}  Nd5 {[%clk 0:00:19]} 47. Kd2 {[%clk 0:00:12]}  f3 {[%clk 0:00:19]} 48. Bf1 {[%clk 0:00:12]}  f2 {[%clk 0:00:19]} 49. a5 {[%clk 0:00:12]}  h5 {[%clk 0:00:18]} 50. b5 {[%clk 0:00:12]}  h4 {[%clk 0:00:18]} 51. c4 {[%clk 0:00:11]}  Nc7 {[%clk 0:00:14]} 52. Ke3 {[%clk 0:00:09]}  Kc5 {[%clk 0:00:14]} 53. a6 {[%clk 0:00:08]}  Ne6 {[%clk 0:00:12]} 54. Kxf2 {[%clk 0:00:08]}  Kb6 {[%clk 0:00:11]} 55. Kg1 {[%clk 0:00:08]}  Nc5 {[%clk 0:00:11]} 56. Kh2 {[%clk 0:00:08]}  Ne4 {[%clk 0:00:12]} 57. Kh3 {[%clk 0:00:07]}  Nd2 {[%clk 0:00:13]} 58. Be2 {[%clk 0:00:06]}  Nb3 {[%clk 0:00:13]} 59. Kxh4 {[%clk 0:00:06]}  Nc5 {[%clk 0:00:14]} 60. Kg3 {[%clk 0:00:06]}  Ne4+ {[%clk 0:00:13]} 61. Kf3 {[%clk 0:00:06]}  Nd6 {[%clk 0:00:14]} 62. Bf1 {[%clk 0:00:05]}  Nc8 {[%clk 0:00:13]} 63. Ke3 {[%clk 0:00:06]}  Kc5 {[%clk 0:00:14]} 64. Kd3 {[%clk 0:00:06]}  Nb6 {[%clk 0:00:05]} 65. Ke4 {[%clk 0:00:06]}  Nc8 {[%clk 0:00:05]} 66. Ke5 {[%clk 0:00:06]}  Na7 {[%clk 0:00:06]} 67. Ke6 {[%clk 0:00:06]}  Nc8 {[%clk 0:00:06]} 68. Kd7 {[%clk 0:00:07]}  Nb6+ {[%clk 0:00:06]} 69. Kc7 {[%clk 0:00:07]}  Na4 {[%clk 0:00:07]} 70. a7 {[%clk 0:00:07]}  Nb6 {[%clk 0:00:08]} 71. Kb7 {[%clk 0:00:07]}  Nd7 {[%clk 0:00:08]} 72. a8=Q {[%clk 0:00:06]} 1-0


[Site "https://www.chess.com"]